[Event "*** Titled Tuesday 3|2 Blitz"]
[Site "Chess.com"]
[Date "2017.06.06"]
[Round "8"]
[White "amurdercastle"]
[Black "Fy_Rakotomaharo"]
[Result "0-1"]
[WhiteElo "2289"]
[BlackElo "2405"]
[TimeControl "180+2"]
[EndTime "15:35:20 PDT"]
[Termination "Fy_Rakotomaharo won by resignation"]

1. d4 {[%clk 0:03:02]} 1... Nf6 {[%clk 0:02:48.4]} 2. c4 {[%clk 0:03:02]} 2...
g6 {[%clk 0:02:48.2]} 3. f3 {[%clk 0:03:02.5]} 3... d5 {[%clk 0:02:39.5]} 4.
cxd5 {[%clk 0:03:04.4]} 4... Nxd5 {[%clk 0:02:41.2]} 5. e4 {[%clk 0:02:49.6]}
5... Nb6 {[%clk 0:02:43]} 6. Nc3 {[%clk 0:02:50.2]} 6... Bg7 {[%clk 0:02:43.9]}
7. Be3 {[%clk 0:02:51.6]} 7... O-O {[%clk 0:02:41.8]} 8. Qd2 {[%clk 0:02:52.6]}
8... Nc6 {[%clk 0:02:38.4]} 9. O-O-O {[%clk 0:02:51.8]} 9... a5 {[%clk
0:02:35.3]} 10. h4 {[%clk 0:02:48.8]} 10... a4 {[%clk 0:02:29.9]} 11. h5 {[%clk
0:02:31.5]} 11... Na5 {[%clk 0:02:30.3]} 12. Bh6 {[%clk 0:02:06.7]} 12... Nac4
{[%clk 0:02:27.8]} 13. Bxc4 {[%clk 0:02:07.3]} 13... Nxc4 {[%clk 0:02:28.3]} 14.
Qf4 {[%clk 0:02:08.5]} 14... e5 {[%clk 0:02:10]} 15. dxe5 {[%clk 0:02:08]} 15...
Bxe5 {[%clk 0:02:08.4]} 16. Qg5 {[%clk 0:01:49.1]} 16... Qxg5+ {[%clk 0:01:51]}
17. Bxg5 {[%clk 0:01:51]} 17... a3 {[%clk 0:01:47.4]} 18. b3 {[%clk 0:01:28.1]}
18... Nb2 {[%clk 0:01:46.2]} 19. Nge2 {[%clk 0:01:09.1]} 19... Nxd1 {[%clk
0:01:43.5]} 20. Nxd1 {[%clk 0:01:11]} 20... Be6 {[%clk 0:01:40.2]} 21. Ne3
{[%clk 0:01:05.9]} 21... Bxb3 {[%clk 0:01:34.6]} 22. f4 {[%clk 0:01:01.4]} 22...
Bb2+ {[%clk 0:01:29.1]} 23. Kb1 {[%clk 0:01:02.1]} 23... Ba4 {[%clk 0:01:26.9]}
24. e5 {[%clk 0:00:58.9]} 24... Bb5 {[%clk 0:01:27.8]} 25. Nc1 {[%clk
0:00:53.7]} 25... Bc6 {[%clk 0:01:27.5]} 26. Kc2 {[%clk 0:00:28.5]} 26... Be4+
{[%clk 0:01:18.4]} 27. Kd2 {[%clk 0:00:29.1]} 27... Ra4 {[%clk 0:01:13.7]} 28.
Nb3 {[%clk 0:00:27.9]} 28... b6 {[%clk 0:01:13.5]} 29. hxg6 {[%clk 0:00:16]}
29... fxg6 {[%clk 0:01:14]} 30. Ke2 {[%clk 0:00:16.9]} 30... c5 {[%clk
0:01:13.3]} 31. Rd1 {[%clk 0:00:17.5]} 31... c4 {[%clk 0:01:12.3]} 32. Nd4
{[%clk 0:00:19]} 32... Bd3+ {[%clk 0:01:10.7]} 33. Kf3 {[%clk 0:00:13.7]} 33...
Bxd4 {[%clk 0:01:11.1]} 34. Nd5 {[%clk 0:00:15.2]} 34... Bxe5 {[%clk 0:01:10.1]}
35. Ne7+ {[%clk 0:00:14.7]} 35... Kg7 {[%clk 0:01:10.3]} 36. Ke3 {[%clk
0:00:15.9]} 36... Bd6 {[%clk 0:01:06.4]} 37. Nd5 {[%clk 0:00:16.4]} 37... Re8+
{[%clk 0:01:05.5]} 38. Kf3 {[%clk 0:00:17]} 38... Be2+ {[%clk 0:01:05.2]} 0-1

[Event "*** Titled Tuesday 3|2 Blitz"]
[Site "Chess.com"]
[Date "2017.06.06"]
[Round "8"]
[White "Keranke"]
[Black "Rodalquilar"]
[Result "1-0"]
[WhiteElo "2667"]
[BlackElo "2539"]
[TimeControl "180+2"]
[EndTime "15:35:31 PDT"]
[Termination "Keranke won on time"]

1. d4 {[%clk 0:03:02]} 1... Nf6 {[%clk 0:03:00.8]} 2. Bf4 {[%clk 0:03:01.8]}
2... e6 {[%clk 0:02:55.3]} 3. e3 {[%clk 0:03:02.6]} 3... c5 {[%clk 0:02:53.5]}
4. Nf3 {[%clk 0:03:02.4]} 4... Nc6 {[%clk 0:02:52.6]} 5. Nc3 {[%clk 0:03:03.3]}
5... cxd4 {[%clk 0:02:39.6]} 6. exd4 {[%clk 0:03:05.2]} 6... Qb6 {[%clk
0:02:21.7]} 7. a3 {[%clk 0:02:51.9]} 7... Be7 {[%clk 0:02:17.8]} 8. Be2 {[%clk
0:02:48]} 8... O-O {[%clk 0:02:18.7]} 9. O-O {[%clk 0:02:48.8]} 9... d6 {[%clk
0:02:15.6]} 10. Re1 {[%clk 0:02:34.8]} 10... Bd7 {[%clk 0:02:16]} 11. Nb5 {[%clk
0:02:31.5]} 11... Na5 {[%clk 0:02:03]} 12. c4 {[%clk 0:02:17.1]} 12... Nxc4
{[%clk 0:01:57.6]} 13. a4 {[%clk 0:02:06.5]} 13... Rfc8 {[%clk 0:01:10.2]} 14.
b3 {[%clk 0:01:58.6]} 14... Na5 {[%clk 0:01:07.9]} 15. b4 {[%clk 0:01:58]} 15...
Nc4 {[%clk 0:01:06.3]} 16. Qb3 {[%clk 0:01:56.7]} 16... d5 {[%clk 0:01:04.6]}
17. Ne5 {[%clk 0:01:54.6]} 17... Bxb5 {[%clk 0:01:00.3]} 18. axb5 {[%clk
0:01:53.1]} 18... Qxb5 {[%clk 0:00:51.3]} 19. Rab1 {[%clk 0:01:47.6]} 19... a5
{[%clk 0:00:42.7]} 20. Qh3 {[%clk 0:01:45.1]} 20... axb4 {[%clk 0:00:37.9]} 21.
Nxf7 {[%clk 0:01:40.1]} 21... Kxf7 {[%clk 0:00:17]} 22. Qxe6+ {[%clk 0:01:18]}
22... Kxe6 {[%clk 0:00:06.7]} 23. Bxc4+ {[%clk 0:01:19.1]} 23... Kf5 {[%clk
0:00:08.2]} 24. Bxb5 {[%clk 0:01:19]} 24... Kxf4 {[%clk 0:00:08.7]} 25. Rxe7
{[%clk 0:01:19.8]} 25... b3 {[%clk 0:00:05.9]} 26. Bd3 {[%clk 0:01:19.1]} 26...
b2 {[%clk 0:00:06]} 27. g3+ {[%clk 0:01:09.4]} 27... Kg5 {[%clk 0:00:07.4]} 28.
Rxg7+ {[%clk 0:01:08.3]} 28... Kh6 {[%clk 0:00:08.6]} 29. Rxb7 {[%clk
0:01:09.9]} 29... Rc1+ {[%clk 0:00:09.2]} 30. Kg2 {[%clk 0:01:11.4]} 30... Rc3
{[%clk 0:00:04.5]} 31. Bf5 {[%clk 0:01:07.9]} 31... Rf8 {[%clk 0:00:05.4]} 32.
R1xb2 {[%clk 0:01:06.3]} 32... Rc4 {[%clk 0:00:06.9]} 33. R2b6 {[%clk
0:01:05.9]} 33... Kg5 {[%clk 0:00:06.8]} 34. Bb1 {[%clk 0:01:01.9]} 34... Rxd4
{[%clk 0:00:06.8]} 35. h4+ {[%clk 0:00:58.3]} 35... Kh5 {[%clk 0:00:08.1]} 36.
Bxh7 {[%clk 0:00:56.7]} 36... Rd2 {[%clk 0:00:09.1]} 37. Bf5 {[%clk 0:00:55.8]}
37... d4 {[%clk 0:00:02.9]} 38. Kh3 {[%clk 0:00:54.8]} 38... Rg8 {[%clk
0:00:02.3]} 39. Rxf6 {[%clk 0:00:50.9]} 1-0

[Event "*** Titled Tuesday 3|2 Blitz"]
[Site "Chess.com"]
[Date "2017.06.06"]
[Round "8"]
[White "Divertissement"]
[Black "Pierrebl"]
[Result "0-1"]
[WhiteElo "2417"]
[BlackElo "2551"]
[TimeControl "180+2"]
[EndTime "15:35:54 PDT"]
[Termination "Pierrebl won by resignation"]

1. d4 {[%clk 0:02:18.3]} 1... d5 {[%clk 0:02:57.3]} 2. Nf3 {[%clk 0:02:19.5]}
2... Nf6 {[%clk 0:02:58.1]} 3. c4 {[%clk 0:02:21.3]} 3... c6 {[%clk 0:02:59.4]}
4. Nbd2 {[%clk 0:02:21.8]} 4... Bf5 {[%clk 0:02:59.5]} 5. Nh4 {[%clk 0:02:22.9]}
5... Be6 {[%clk 0:02:59.6]} 6. e3 {[%clk 0:02:20.8]} 6... g6 {[%clk 0:02:59.6]}
7. Be2 {[%clk 0:02:20.9]} 7... Bg7 {[%clk 0:03:00]} 8. O-O {[%clk 0:02:22.3]}
8... O-O {[%clk 0:03:01.3]} 9. b3 {[%clk 0:02:17.3]} 9... c5 {[%clk 0:03:01.8]}
10. Bb2 {[%clk 0:02:15]} 10... cxd4 {[%clk 0:03:01.2]} 11. Bxd4 {[%clk 0:02:16]}
11... Nc6 {[%clk 0:03:02.2]} 12. Bb2 {[%clk 0:02:15.9]} 12... d4 {[%clk
0:03:01.7]} 13. exd4 {[%clk 0:02:12]} 13... Nxd4 {[%clk 0:03:03.6]} 14. Nhf3
{[%clk 0:02:10.1]} 14... Nxe2+ {[%clk 0:02:41.5]} 15. Qxe2 {[%clk 0:02:10.9]}
15... Qc7 {[%clk 0:02:43]} 16. Rad1 {[%clk 0:02:05.1]} 16... Rfd8 {[%clk
0:02:39.9]} 17. Rfe1 {[%clk 0:02:05.9]} 17... a5 {[%clk 0:02:33.6]} 18. Ne4
{[%clk 0:01:53]} 18... Rxd1 {[%clk 0:02:24.1]} 19. Nxf6+ {[%clk 0:01:48.4]}
19... Bxf6 {[%clk 0:02:25.3]} 20. Rxd1 {[%clk 0:01:49.5]} 20... Bxb2 {[%clk
0:02:24]} 21. Qxb2 {[%clk 0:01:50.5]} 21... Bg4 {[%clk 0:02:12.3]} 22. Rd3
{[%clk 0:01:47.4]} 22... a4 {[%clk 0:02:07.2]} 23. h3 {[%clk 0:01:44.3]} 23...
Bf5 {[%clk 0:01:54.3]} 24. Rd2 {[%clk 0:01:39.3]} 24... Qf4 {[%clk 0:01:47.4]}
25. Qe5 {[%clk 0:01:33.6]} 25... Qxe5 {[%clk 0:01:40.4]} 26. Nxe5 {[%clk
0:01:34.3]} 26... axb3 {[%clk 0:01:24.5]} 27. axb3 {[%clk 0:01:34.9]} 27... Ra1+
{[%clk 0:01:25.9]} 28. Kh2 {[%clk 0:01:36.1]} 28... Rb1 {[%clk 0:01:27.3]} 29.
g4 {[%clk 0:01:36.9]} 29... Be6 {[%clk 0:01:24.4]} 30. Rd3 {[%clk 0:01:34.7]}
30... f6 {[%clk 0:01:25]} 31. Nf3 {[%clk 0:01:33.9]} 31... Kf7 {[%clk
0:01:15.2]} 32. Rc3 {[%clk 0:01:23.6]} 32... g5 {[%clk 0:01:03.2]} 33. Nd4
{[%clk 0:01:22.9]} 33... Bd7 {[%clk 0:01:02.8]} 34. c5 {[%clk 0:01:19]} 34... e5
{[%clk 0:01:01.1]} 35. Ne2 {[%clk 0:01:13.5]} 35... Bc6 {[%clk 0:00:55.5]} 36.
Nc1 {[%clk 0:00:59.3]} 36... Kg6 {[%clk 0:00:47.1]} 37. Kg3 {[%clk 0:00:59]}
37... h5 {[%clk 0:00:47.7]} 38. f3 {[%clk 0:00:59.7]} 38... h4+ {[%clk
0:00:40.9]} 39. Kf2 {[%clk 0:01:00.3]} 39... Rb2+ {[%clk 0:00:42]} 40. Ke3
{[%clk 0:01:01.3]} 40... Rh2 {[%clk 0:00:42.4]} 41. Nd3 {[%clk 0:00:46.5]} 41...
Rxh3 {[%clk 0:00:42.1]} 42. Ne1 {[%clk 0:00:47.6]} 42... Rh1 {[%clk 0:00:41.6]}
43. Kf2 {[%clk 0:00:48]} 43... Rh2+ {[%clk 0:00:42]} 44. Ke3 {[%clk 0:00:48.3]}
44... Rb2 {[%clk 0:00:40.5]} 45. Rd3 {[%clk 0:00:48.7]} 45... h3 {[%clk
0:00:39.9]} 46. Rd2 {[%clk 0:00:47.6]} 46... Rxd2 {[%clk 0:00:40.2]} 0-1

[Event "*** Titled Tuesday 3|2 Blitz"]
[Site "Chess.com"]
[Date "2017.06.06"]
[Round "8"]
[White "Gordima"]
[Black "heartofatiger"]
[Result "1-0"]
[WhiteElo "2532"]
[BlackElo "2389"]
[TimeControl "180+2"]
[EndTime "15:36:10 PDT"]
[Termination "Gordima won on time"]

1. Nf3 {[%clk 0:03:00.4]} 1... Nf6 {[%clk 0:03:00.3]} 2. c4 {[%clk 0:03:01.6]}
2... g6 {[%clk 0:03:01.5]} 3. Nc3 {[%clk 0:03:02.2]} 3... Bg7 {[%clk 0:03:03.1]}
4. e4 {[%clk 0:03:03.1]} 4... d6 {[%clk 0:03:04.6]} 5. d4 {[%clk 0:03:04.4]}
5... O-O {[%clk 0:03:06.2]} 6. Be2 {[%clk 0:03:05.8]} 6... Na6 {[%clk
0:03:06.3]} 7. O-O {[%clk 0:03:05.7]} 7... e5 {[%clk 0:03:06.9]} 8. Be3 {[%clk
0:03:07]} 8... c6 {[%clk 0:03:07.3]} 9. d5 {[%clk 0:03:07.9]} 9... Ng4 {[%clk
0:03:08.1]} 10. Bg5 {[%clk 0:03:09.3]} 10... f6 {[%clk 0:03:09.2]} 11. Bh4
{[%clk 0:03:10.7]} 11... c5 {[%clk 0:03:10.3]} 12. Nd2 {[%clk 0:03:08.5]} 12...
h5 {[%clk 0:03:10.3]} 13. h3 {[%clk 0:02:58.6]} 13... Nh6 {[%clk 0:03:10.9]} 14.
a3 {[%clk 0:02:57.2]} 14... Nf7 {[%clk 0:03:10.1]} 15. Rb1 {[%clk 0:02:55.8]}
15... Bh6 {[%clk 0:03:08]} 16. b4 {[%clk 0:02:46.5]} 16... Qe7 {[%clk
0:03:03.8]} 17. bxc5 {[%clk 0:02:40.6]} 17... Nxc5 {[%clk 0:03:03.8]} 18. Nb3
{[%clk 0:02:41.4]} 18... b6 {[%clk 0:02:55]} 19. a4 {[%clk 0:02:39.9]} 19... Bg5
{[%clk 0:02:50]} 20. Bg3 {[%clk 0:02:38.4]} 20... h4 {[%clk 0:02:49.4]} 21. Bh2
{[%clk 0:02:39.8]} 21... Bf4 {[%clk 0:02:48.2]} 22. a5 {[%clk 0:02:35.3]} 22...
Bxh2+ {[%clk 0:02:47.1]} 23. Kxh2 {[%clk 0:02:36.8]} 23... f5 {[%clk 0:02:36.1]}
24. Nxc5 {[%clk 0:02:07.4]} 24... bxc5 {[%clk 0:02:34.7]} 25. Bd3 {[%clk
0:02:08.8]} 25... Ng5 {[%clk 0:02:07.9]} 26. f3 {[%clk 0:01:40.8]} 26... Nh7
{[%clk 0:01:56]} 27. Qd2 {[%clk 0:01:34.3]} 27... Kg7 {[%clk 0:01:35.8]} 28. Rb2
{[%clk 0:01:30.8]} 28... f4 {[%clk 0:01:10.5]} 29. Rfb1 {[%clk 0:01:29]} 29...
Qg5 {[%clk 0:01:10]} 30. Kh1 {[%clk 0:01:16.6]} 30... Nf6 {[%clk 0:01:10.1]} 31.
Bc2 {[%clk 0:01:00.7]} 31... Nh5 {[%clk 0:00:56.4]} 32. Ba4 {[%clk 0:01:00.6]}
32... Qg3 {[%clk 0:00:33.4]} 33. Bc6 {[%clk 0:00:32.3]} 33... Bxh3 {[%clk
0:00:32.4]} 34. Bxa8 {[%clk 0:00:33.2]} 34... Rxa8 {[%clk 0:00:32.9]} 35. Qf2
{[%clk 0:00:28.3]} 35... Qxf2 {[%clk 0:00:06.9]} 36. Rxf2 {[%clk 0:00:27.8]}
36... Bc8 {[%clk 0:00:06.6]} 37. Rfb2 {[%clk 0:00:27.8]} 37... Ba6 {[%clk
0:00:06.5]} 38. Rb8 {[%clk 0:00:28.8]} 38... Rxb8 {[%clk 0:00:06.7]} 39. Rxb8
{[%clk 0:00:30.3]} 39... Bxc4 {[%clk 0:00:08]} 40. Rb7+ {[%clk 0:00:31.7]} 40...
Kf6 {[%clk 0:00:08.4]} 41. Rxa7 {[%clk 0:00:32.7]} 41... Ng3+ {[%clk 0:00:07.6]}
42. Kg1 {[%clk 0:00:33.2]} 1-0

[Event "*** Titled Tuesday 3|2 Blitz"]
[Site "Chess.com"]
[Date "2017.06.06"]
[Round "8"]
[White "Batica1984"]
[Black "jcibarra"]
[Result "0-1"]
[WhiteElo "2539"]
[BlackElo "2647"]
[TimeControl "180+2"]
[EndTime "15:36:30 PDT"]
[Termination "jcibarra won by resignation"]

1. e4 {[%clk 0:02:59.8]} 1... c5 {[%clk 0:03:00.5]} 2. Nc3 {[%clk 0:02:59.9]}
2... a6 {[%clk 0:03:00.8]} 3. Nf3 {[%clk 0:02:59]} 3... d6 {[%clk 0:03:01.3]} 4.
d4 {[%clk 0:02:56.3]} 4... cxd4 {[%clk 0:03:03.2]} 5. Nxd4 {[%clk 0:02:57.4]}
5... Nf6 {[%clk 0:03:04.4]} 6. Be3 {[%clk 0:02:55.2]} 6... Ng4 {[%clk
0:03:05.4]} 7. Bg5 {[%clk 0:02:54.1]} 7... h6 {[%clk 0:03:06.5]} 8. Bh4 {[%clk
0:02:54.7]} 8... g5 {[%clk 0:03:07.7]} 9. Bg3 {[%clk 0:02:54.8]} 9... Bg7 {[%clk
0:03:09]} 10. Be2 {[%clk 0:02:54.5]} 10... h5 {[%clk 0:03:10.4]} 11. h4 {[%clk
0:02:38.9]} 11... Nc6 {[%clk 0:03:10.4]} 12. Nxc6 {[%clk 0:02:31.8]} 12... bxc6
{[%clk 0:03:11.2]} 13. hxg5 {[%clk 0:02:32.9]} 13... Rb8 {[%clk 0:03:09.8]} 14.
Qc1 {[%clk 0:01:56]} 14... Qa5 {[%clk 0:03:06.7]} 15. O-O {[%clk 0:01:49.7]}
15... h4 {[%clk 0:03:05.4]} 16. Bf4 {[%clk 0:01:50.5]} 16... h3 {[%clk
0:03:06.8]} 17. g3 {[%clk 0:01:49.4]} 17... Qb6 {[%clk 0:02:52.5]} 18. Nd1
{[%clk 0:01:39.1]} 18... Be6 {[%clk 0:02:33.7]} 19. c3 {[%clk 0:01:33.4]} 19...
f6 {[%clk 0:02:18.7]} 20. gxf6 {[%clk 0:01:29.7]} 20... Bxf6 {[%clk 0:02:15.8]}
21. b3 {[%clk 0:01:26.4]} 21... Kd7 {[%clk 0:02:10.9]} 22. Ne3 {[%clk
0:01:26.7]} 22... Ne5 {[%clk 0:02:04.8]} 23. Nf5 {[%clk 0:01:22.5]} 23... Rbg8
{[%clk 0:01:59.6]} 24. Qd2 {[%clk 0:01:19.4]} 24... c5 {[%clk 0:01:54.6]} 25.
Rad1 {[%clk 0:01:20]} 25... Qc6 {[%clk 0:01:53.5]} 26. f3 {[%clk 0:01:14.7]}
26... Kc7 {[%clk 0:01:43.9]} 27. Kh2 {[%clk 0:01:12.8]} 27... Bxf5 {[%clk
0:01:35.6]} 28. exf5 {[%clk 0:01:13.3]} 28... Rh5 {[%clk 0:01:37.5]} 29. Qc2
{[%clk 0:01:06.1]} 29... Ng4+ {[%clk 0:01:34.7]} 30. Kh1 {[%clk 0:01:02]} 30...
Be5 {[%clk 0:01:31.7]} 31. Bxe5 {[%clk 0:01:02.9]} 31... Nxe5 {[%clk 0:01:30.3]}
32. Qe4 {[%clk 0:00:41.8]} 32... Rxg3 {[%clk 0:01:25.8]} 33. Qxc6+ {[%clk
0:00:40.4]} 33... Kxc6 {[%clk 0:01:23.2]} 34. f4 {[%clk 0:00:33.7]} 34... Ng4
{[%clk 0:01:23.1]} 35. Rg1 {[%clk 0:00:32.1]} 35... Nf2+ {[%clk 0:01:21.7]} 36.
Kh2 {[%clk 0:00:32.7]} 36... Rxg1 {[%clk 0:01:19.7]} 37. Rxg1 {[%clk 0:00:33]}
37... Rxf5 {[%clk 0:01:19.1]} 38. Kg3 {[%clk 0:00:29.8]} 38... Ne4+ {[%clk
0:01:17]} 39. Kg4 {[%clk 0:00:27.6]} 39... Rf8 {[%clk 0:01:15.4]} 40. Rf1 {[%clk
0:00:25.9]} 40... h2 {[%clk 0:01:10.3]} 41. Bf3 {[%clk 0:00:26.6]} 41... d5
{[%clk 0:01:09.3]} 42. Bxe4 {[%clk 0:00:17.6]} 42... dxe4 {[%clk 0:01:10.4]} 43.
Kh3 {[%clk 0:00:18.2]} 43... Rxf4 {[%clk 0:01:05.8]} 44. Re1 {[%clk 0:00:19]}
44... Kd5 {[%clk 0:01:04.9]} 45. Kxh2 {[%clk 0:00:18.9]} 45... Rf2+ {[%clk
0:00:59.6]} 46. Kg3 {[%clk 0:00:19.9]} 46... Rxa2 {[%clk 0:01:00.6]} 47. Kf4
{[%clk 0:00:20.3]} 47... Rf2+ {[%clk 0:00:59.8]} 48. Ke3 {[%clk 0:00:21.2]}
48... Rc2 {[%clk 0:00:58.8]} 49. Rd1+ {[%clk 0:00:20.4]} 49... Ke5 {[%clk
0:00:59.5]} 50. c4 {[%clk 0:00:18.7]} 50... Rc3+ {[%clk 0:00:58.7]} 51. Ke2
{[%clk 0:00:20]} 51... Rxb3 {[%clk 0:00:52.8]} 52. Rd5+ {[%clk 0:00:21.3]} 52...
Kf4 {[%clk 0:00:54.2]} 53. Rxc5 {[%clk 0:00:22.4]} 53... Rb2+ {[%clk 0:00:55.8]}
54. Kd1 {[%clk 0:00:23.6]} 54... e3 {[%clk 0:00:53.5]} 55. Rc8 {[%clk
0:00:22.3]} 55... e2+ {[%clk 0:00:52.8]} 56. Ke1 {[%clk 0:00:22.6]} 56... Ke3
{[%clk 0:00:54.3]} 0-1

[Event "*** Titled Tuesday 3|2 Blitz"]
[Site "Chess.com"]
[Date "2017.06.06"]
[Round "8"]
[White "NTBT_DHS"]
[Black "Ind1anStar"]
[Result "1-0"]
[WhiteElo "2438"]
[BlackElo "2308"]
[TimeControl "180+2"]
[EndTime "15:36:30 PDT"]
[Termination "NTBT_DHS won by resignation"]

1. d4 {[%clk 0:03:02]} 1... Nf6 {[%clk 0:03:00.2]} 2. c4 {[%clk 0:03:03.9]} 2...
g6 {[%clk 0:03:01.3]} 3. Nf3 {[%clk 0:03:04.8]} 3... Bg7 {[%clk 0:03:00.7]} 4.
g3 {[%clk 0:03:05.9]} 4... O-O {[%clk 0:03:00.8]} 5. Bg2 {[%clk 0:03:07.8]} 5...
d5 {[%clk 0:03:00.5]} 6. O-O {[%clk 0:03:04.2]} 6... dxc4 {[%clk 0:03:01.5]} 7.
Na3 {[%clk 0:03:00.7]} 7... Nc6 {[%clk 0:02:55.2]} 8. Nxc4 {[%clk 0:02:56.6]}
8... Be6 {[%clk 0:02:55.8]} 9. b3 {[%clk 0:02:53.3]} 9... Bd5 {[%clk 0:02:56.3]}
10. Bb2 {[%clk 0:02:53.2]} 10... a5 {[%clk 0:02:55.7]} 11. Re1 {[%clk
0:02:35.7]} 11... a4 {[%clk 0:02:53]} 12. Nfe5 {[%clk 0:02:30.2]} 12... Bxg2
{[%clk 0:02:51.8]} 13. Kxg2 {[%clk 0:02:31.6]} 13... Ra6 {[%clk 0:02:41.5]} 14.
e4 {[%clk 0:02:25.9]} 14... Qa8 {[%clk 0:02:37.8]} 15. Nxc6 {[%clk 0:02:20.7]}
15... bxc6 {[%clk 0:02:37.4]} 16. f3 {[%clk 0:02:06.3]} 16... Rd8 {[%clk
0:02:33.2]} 17. b4 {[%clk 0:02:04.6]} 17... Qb7 {[%clk 0:02:22.6]} 18. a3 {[%clk
0:02:03.9]} 18... c5 {[%clk 0:02:23.1]} 19. bxc5 {[%clk 0:02:00.4]} 19... Nd7
{[%clk 0:02:14.8]} 20. Qc2 {[%clk 0:01:51.7]} 20... e5 {[%clk 0:02:14.4]} 21.
Rab1 {[%clk 0:01:41.5]} 21... Qc6 {[%clk 0:02:07.2]} 22. Nxe5 {[%clk 0:01:35.5]}
22... Nxe5 {[%clk 0:02:07.8]} 23. dxe5 {[%clk 0:01:37.4]} 23... Ra5 {[%clk
0:02:02.9]} 24. Rbc1 {[%clk 0:01:30.8]} 24... Bf8 {[%clk 0:01:52.6]} 25. e6
{[%clk 0:01:15]} 25... Rxc5 {[%clk 0:01:49.9]} 26. exf7+ {[%clk 0:01:14.3]}
26... Kxf7 {[%clk 0:01:50.6]} 27. Qf2 {[%clk 0:01:15.7]} 27... Qb5 {[%clk
0:01:26.3]} 28. Bd4 {[%clk 0:01:09.3]} 28... Rxc1 {[%clk 0:01:13.4]} 29. Rxc1
{[%clk 0:01:09]} 29... c5 {[%clk 0:01:08.6]} 30. Bxc5 {[%clk 0:00:54.6]} 30...
Rc8 {[%clk 0:01:01.9]} 31. Be3 {[%clk 0:00:48.9]} 31... Rxc1 {[%clk 0:00:51.5]}
32. Bxc1 {[%clk 0:00:50.8]} 32... Qc4 {[%clk 0:00:51.2]} 33. Bb2 {[%clk
0:00:48.8]} 33... Bc5 {[%clk 0:00:51]} 34. Qd2 {[%clk 0:00:49.5]} 34... Ke6
{[%clk 0:00:48.1]} 35. h4 {[%clk 0:00:48.5]} 35... Qb3 {[%clk 0:00:40.6]} 36. g4
{[%clk 0:00:40.7]} 36... Be3 {[%clk 0:00:38.8]} 37. Qc3 {[%clk 0:00:40.1]} 37...
Qxc3 {[%clk 0:00:36.7]} 38. Bxc3 {[%clk 0:00:42]} 38... Bc5 {[%clk 0:00:37.2]}
39. Bb2 {[%clk 0:00:43.1]} 39... Kf7 {[%clk 0:00:37.5]} 40. f4 {[%clk
0:00:43.8]} 40... Ke6 {[%clk 0:00:38.2]} 41. Kf3 {[%clk 0:00:44.4]} 41... Ke7
{[%clk 0:00:38.8]} 42. f5 {[%clk 0:00:45.2]} 42... Kf7 {[%clk 0:00:39.5]} 43. e5
{[%clk 0:00:45.4]} 43... Ke7 {[%clk 0:00:37.5]} 44. Ke4 {[%clk 0:00:45.5]} 44...
Kf7 {[%clk 0:00:38.4]} 45. e6+ {[%clk 0:00:45.8]} 45... Ke7 {[%clk 0:00:36]} 46.
Kd5 {[%clk 0:00:47.7]} 46... Bf2 {[%clk 0:00:29.8]} 47. f6+ {[%clk 0:00:48.5]}
47... Kf8 {[%clk 0:00:29.2]} 48. Be5 {[%clk 0:00:42.5]} 1-0

[Event "*** Titled Tuesday 3|2 Blitz"]
[Site "Chess.com"]
[Date "2017.06.06"]
[Round "8"]
[White "chessking2151"]
[Black "Saitama_Hero"]
[Result "1-0"]
[WhiteElo "2347"]
[BlackElo "2234"]
[TimeControl "180+2"]
[EndTime "15:36:30 PDT"]
[Termination "chessking2151 won by resignation"]

1. e4 {[%clk 0:03:02]} 1... d6 {[%clk 0:02:59.7]} 2. d4 {[%clk 0:03:00.6]} 2...
g6 {[%clk 0:03:01.6]} 3. h4 {[%clk 0:03:00]} 3... Bg7 {[%clk 0:03:03.5]} 4. h5
{[%clk 0:02:59.5]} 4... Nf6 {[%clk 0:03:05.1]} 5. h6 {[%clk 0:02:56.1]} 5... Bf8
{[%clk 0:03:04.9]} 6. Nc3 {[%clk 0:02:56.2]} 6... Nbd7 {[%clk 0:03:04.1]} 7. Nf3
{[%clk 0:02:56.6]} 7... e5 {[%clk 0:03:05.3]} 8. dxe5 {[%clk 0:02:55.4]} 8...
dxe5 {[%clk 0:03:04.5]} 9. Bg5 {[%clk 0:02:54.9]} 9... Be7 {[%clk 0:03:03.9]}
10. Bc4 {[%clk 0:02:46.1]} 10... c6 {[%clk 0:03:03.4]} 11. Qe2 {[%clk
0:02:06.9]} 11... O-O {[%clk 0:03:01.5]} 12. O-O-O {[%clk 0:02:05.7]} 12... Qc7
{[%clk 0:02:56.5]} 13. Bb3 {[%clk 0:02:02.9]} 13... Nc5 {[%clk 0:02:52.6]} 14.
Bh4 {[%clk 0:01:56.8]} 14... a5 {[%clk 0:02:49]} 15. Bg3 {[%clk 0:01:53.1]}
15... Nfd7 {[%clk 0:02:43.9]} 16. a4 {[%clk 0:01:47]} 16... Nxb3+ {[%clk
0:02:35.2]} 17. cxb3 {[%clk 0:01:46]} 17... b6 {[%clk 0:02:28.3]} 18. Rxd7
{[%clk 0:01:42.5]} 18... Qxd7 {[%clk 0:02:26]} 19. Nxe5 {[%clk 0:01:39]} 19...
Qe6 {[%clk 0:02:24.2]} 20. Qc4 {[%clk 0:01:33.1]} 20... Bg5+ {[%clk 0:01:46.2]}
21. Kc2 {[%clk 0:01:22.8]} 21... Qxc4 {[%clk 0:01:23.5]} 22. Nxc4 {[%clk
0:01:22.2]} 22... Bd8 {[%clk 0:01:19.1]} 23. Rd1 {[%clk 0:01:18.7]} 23... Be6
{[%clk 0:01:18.8]} 24. Rd6 {[%clk 0:01:02.3]} 24... b5 {[%clk 0:01:16]} 25. axb5
{[%clk 0:00:52.7]} 25... cxb5 {[%clk 0:01:17.9]} 26. Nxb5 {[%clk 0:00:51.4]}
26... a4 {[%clk 0:01:19.3]} 27. Nba3 {[%clk 0:00:36.7]} 27... axb3+ {[%clk
0:01:18.4]} 28. Kxb3 {[%clk 0:00:36.1]} 28... Be7 {[%clk 0:01:19.4]} 29. Rc6
{[%clk 0:00:30.9]} 29... Rfc8 {[%clk 0:01:16.3]} 30. Rxe6 {[%clk 0:00:15.5]}
30... fxe6 {[%clk 0:01:14.8]} 31. Nb5 {[%clk 0:00:16.2]} 31... Rc5 {[%clk
0:00:51.3]} 32. Nba3 {[%clk 0:00:11.1]} 32... Rh5 {[%clk 0:00:44.6]} 33. Bf4
{[%clk 0:00:11.2]} 33... Rf8 {[%clk 0:00:41.8]} 34. Be3 {[%clk 0:00:10.6]} 34...
Bc5 {[%clk 0:00:38.6]} 35. f3 {[%clk 0:00:07.1]} 35... Bxe3 {[%clk 0:00:37.6]}
36. Nxe3 {[%clk 0:00:09]} 36... Rxh6 {[%clk 0:00:38.4]} 37. Nac4 {[%clk
0:00:10.5]} 37... Rh5 {[%clk 0:00:37]} 38. Kc3 {[%clk 0:00:11.4]} 38... Rc5
{[%clk 0:00:37.1]} 39. b4 {[%clk 0:00:12.2]} 39... Rb5 {[%clk 0:00:32.8]} 40.
Nd6 {[%clk 0:00:12.5]} 40... Rb6 {[%clk 0:00:30.5]} 41. Nec4 {[%clk 0:00:13.4]}
41... Rbb8 {[%clk 0:00:22.6]} 42. b5 {[%clk 0:00:14.5]} 42... Rfd8 {[%clk
0:00:23.9]} 43. Kb4 {[%clk 0:00:15.2]} 43... Kf8 {[%clk 0:00:25.2]} 44. e5
{[%clk 0:00:15.6]} 44... Ke7 {[%clk 0:00:25.1]} 45. Na5 {[%clk 0:00:16.5]} 45...
Rxd6 {[%clk 0:00:24.2]} 46. exd6+ {[%clk 0:00:17.7]} 46... Kxd6 {[%clk
0:00:25.6]} 47. Nc4+ {[%clk 0:00:19.6]} 47... Kc7 {[%clk 0:00:25.2]} 48. Kc5
{[%clk 0:00:20.6]} 48... h5 {[%clk 0:00:24.5]} 49. b6+ {[%clk 0:00:21.6]} 49...
Kd7 {[%clk 0:00:24.1]} 50. Ne5+ {[%clk 0:00:22.4]} 50... Ke7 {[%clk 0:00:24.4]}
51. Nc6+ {[%clk 0:00:23.1]} 1-0